Cogmind - Beta 14 @@@ ROGUE MODE // 2024.08.13 @ 18:37:44 Player: Daffa0360 Result: Destroyed by YE-RHT(R) with Subdweller Laser Performance ------------- Evolutions (0) 0 Regions Visited (2) 400 Robots Destroyed (15) 75 Value Destroyed (444) 444 Prototype IDs (0) 0 Alien Tech Used (0) 0 Bonus (0) 0 TOTAL SCORE: 919 Bonus ------- None Cogmind --------- Core Integrity 0/250 Matter 225/300 Energy 98/100 System Corruption 0% Temperature Cool (6) Movement Rolling (100) Location -10/Subcaves Parts ------- > --- POWER (1) -------- (None) > --- PROPULSION (2) --- Compact Wheel Compact Wheel > --- UTILITY (2) ------ Small Storage Unit > --- WEAPON (2) ------- Light Assault Rifle Makeshift Hammer > --- INVENTORY (8) ---- Ion Engine Aluminum Leg Aluminum Leg Weight Redist. System Grenade Launcher Peak State ------------ > --- POWER ------------ Ion Engine > --- PROPULSION ------- Compact Wheel Compact Wheel > --- UTILITY ---------- Small Storage Unit Makeshift Kinetic Plating > --- WEAPON ----------- Assault Rifle Makeshift Hammer > --- INVENTORY -------- Ion Engine Aluminum Leg Aluminum Leg Weight Redist. System Light Assault Rifle Grenade Launcher [Rating: 13] Favorites ----------- Power Ion Engine Engine Ion Engine Propulsion Compact Wheel Wheel Compact Wheel Utility Small Storage Unit Device Improved Terrain Scanner Storage Small Storage Unit Protection Makeshift Kinetic Plating Weapon Assault Rifle Ballistic Gun Assault Rifle Launcher Grenade Launcher Special Weapon Mining Laser Impact Weapon Makeshift Hammer Build | -11 -10 -10 ------- Run | Yrd Mat Sub Slots Evolved . | . . . Power . | . . . Propulsion . | . . . Utility . | . . . Weapon . | . . . Parts Attached 16 | 5 4 7 Power 1 | 1 . . Engine 1 | 1 . . Core . | . . . Reactor . | . . . Propulsion 2 | 2 . . Treads . | . . . Leg . | . . . Wheel 2 | 2 . . Hover . | . . . Flight . | . . . Utility 4 | . 3 1 Device 2 | . 2 . Storage 1 | . 1 . Processor . | . . . Hackware . | . . . Protection 1 | . . 1 Artifact . | . . . Weapon 9 | 2 1 6 Energy Gun . | . . . Energy Cannon . | . . . Ballistic Gun 4 | 2 . 2 Ballistic Cannon . | . . . Launcher 2 | . . 2 Special Weapon 1 | . 1 . Impact Weapon 2 | . . 2 Slashing Weapon . | . . . Piercing Weapon . | . . . Special Melee Weapon . | . . . Unidentified Prototypes . | . . . Parts Lost 4 | . . 4 Power 1 | . . 1 Propulsion . | . . . Utility 2 | . . 2 Weapon 1 | . . 1 Highest Loss Streak 2 | . . 2 To Critical Strikes . | . . . Average Slot Usage (%) 95 | . 100 95 Engine 13 | . 14 13 Wheel 28 | . 28 28 Device 7 | . 15 5 Storage 13 | . 12 14 Protection 5 | . . 6 Ballistic Gun 13 | . 18 12 Launcher 1 | . . 1 Special Weapon 1 | . 9 . Impact Weapon 9 | . . 10 Peak Build Rating 13 | 5 10 13 Average Rating 10 | 4 9 11 On Entrance 4 | . 5 9 Naked Turns . | . . . Heaviest Build 22 | 8 14 22 Greatest Support 38 | 32 38 32 Greatest Overweight (x) . | . . . Average Overweight (x) . | . . . Largest Inventory Capacity 8 | 5 8 8 Average Capacity 7 | 5 7 8 Most Carried 7 | 5 6 7 Average Carried 5 | 3 5 6 Final Capacity 8 | 5 8 8 Final Carried 6 | 5 6 5 Class Distribution -------------------- 100% | Mutant Dominant Class ---------------- Mutant | -10/Materials Mutant | -10/Subcaves Resources | -11 -10 -10 ----------- Run | Yrd Mat Sub Matter Collected 511 | 218 . 293 Remotely . | . . . Salvage Created 375 | 61 . 314 Parts 26 | 14 . 12 Haulers Intercepted . | . . . Recyclers Shooed . | . . . Parts Field Recycled . | . . . Retrieved Matter . | . . . Parts Self-Destructed 6 | . . 6 Prevented 1 | . . 1 Kills | -11 -10 -10 ------- Run | Yrd Mat Sub Combat Hostiles Destroyed 11 | . . 11 Melee 2 | . . 2 Guns 2 | . . 2 AOE 5 | . . 5 Classes Destroyed 5 | 1 . 4 Tunneler 4 | 4 . . Swarmer 1 | . . 1 Grunt 2 | . . 2 Sentry 1 | . . 1 Subdweller 7 | . . 7 Best Kill Streak 3 | 2 . 3 Combat Bots Only 3 | . . 3 Max Kills in Single Turn 2 | 1 . 2 Gunslinging . | . . . Exploded 2 | . . 2 Melee 1 | . . 1 Uniques/NPCs Destroyed . | . . . Combat | -11 -10 -10 -------- Run | Yrd Mat Sub Hostile Shots Fired 55 | . . 55 Missed 14 | . . 14 Damage Taken 827 | . . 827 Core 261 | . . 261 Absorbed by Shields . | . . . Ignored by Resistances 27 | . . 27 Core Remaining (%) 100 | 100 . . Volleys Fired 49 | 15 9 25 Largest 2 | 2 1 2 Hottest 100 | 40 100 50 Shots Fired 71 | 30 9 32 Gun 47 | 30 . 17 Cannon . | . . . Launcher 15 | . . 15 Special 9 | . 9 . Kinetic 47 | 30 . 17 Thermal 9 | . 9 . Explosive 15 | . . 15 Electromagnetic . | . . . Robot Hit Streak 15 | 4 . 15 Robot Miss Streak 3 | 3 . 2 Penetration Max . | . . . Secondary Targets . | . . . Shots Hit Robots 50 | 15 . 35 Core Hits 24 | 7 . 17 Critical Kills . | . . . Critical Parts Destroyed . | . . . Critical Strikes . | . . . Melee Attacks 42 | . . 42 Impact 42 | . . 42 Slashing . | . . . Piercing . | . . . Sneak Attacks . | . . . Combat Hostiles . | . . . Follow-up Attacks . | . . . Damage Inflicted 1805 | 187 . 1618 Guns 326 | 187 . 139 Cannons . | . . . Explosions 892 | . . 892 Melee 587 | . . 587 Ramming . | . . . Kinetic 326 | 187 . 139 Thermal . | . . . Explosive 892 | . . 892 Electromagnetic . | . . . Impact 587 | . . 587 Slashing . | . . . Piercing . | . . . Highest Corruption . | . . . Average Corruption . | . . . Corruption Purged . | . . . Corruption Blocked . | . . . Overload Shots . | . . . Overflow Damage 46 | . . 46 Projectiles . | . . . Explosions . | . . . Melee 46 | . . 46 Knockbacks 1 | . . 1 Impact 1 | . . 1 Kinetic . | . . . Secondary . | . . . Self-Inflicted Damage 12 | . . 12 Shots 1 | . . 1 Rammed . | . . . Targets Rammed . | . . . Kicked . | . . . Crushed . | . . . Highest Temperature 80 | . 80 . Average Temperature 26 | . 26 . Received Heat Transfer 231 | . . 231 Siege Activations . | . . . Robots Corrupted 2 | . . 2 Combat Hostiles 2 | . . 2 Parts Fried 6 | . . 6 Impact Corruptions 4 | . . 4 Robots Melted . | . . . Combat Hostiles . | . . . Parts Melted . | . . . Heat Transferred . | . . . Parts Sabotaged . | . . . Parts Stolen . | . . . Parts Stripped . | . . . Power Chain Reactions . | . . . Alert | -11 -10 -10 ------- Run | Yrd Mat Sub Peak Influence 20 | 20 16 . Initial 13 | . 13 . Average 11 | 8 14 . Maximum Alert Level . | . . . Low Security (%) 100 | 100 100 . Level 1 . | . . . Level 2 . | . . . Level 3 . | . . . Level 4 . | . . . Level 5 . | . . . High Security . | . . . Max Security . | . . . Squads Dispatched . | . . . Investigation . | . . . Extermination . | . . . Reinforcement . | . . . Assault . | . . . Garrison . | . . . Intercept . | . . . Searches Triggered . | . . . Construction Impeded . | . . . Haulers Reinforced . | . . . Active Scanning Responses . | . . . Cargo Convoy Interrupts . | . . . Stealth | -11 -10 -10 --------- Run | Yrd Mat Sub Distress Signals . | . . . Communications Jammed . | . . . Distress Signals . | . . . Times Spotted 14 | . . 14 Peak Tracking Total 2 | . 1 2 Tactical Retreats . | . . . Traps | -11 -10 -10 ------- Run | Yrd Mat Sub Traps Triggered . | . . . Indirectly . | . . . Trap Hack Attempts . | . . . Triggered . | . . . Disarmed . | . . . Reprogrammed . | . . . Reused . | . . . Traps Extracted . | . . . Installed . | . . . Triggered . | . . . Machines | -11 -10 -10 ---------- Run | Yrd Mat Sub Machines Disabled . | . . . Max in Single Turn . | . . . Machines Repaired . | . . . Machines Dismantled . | . . . Machines Sabotaged . | . . . Overloaded Fab Kills . | . . . Hacking | -11 -10 -10 --------- Run | Yrd Mat Sub Machines Accessed . | . . . Terminals . | . . . Fabricators . | . . . Repair Stations . | . . . Recycling Units . | . . . Scanalyzers . | . . . Garrison Access . | . . . Total Hacks . | . . . Successful . | . . . Failed . | . . . Catastrophic . | . . . Database Lockouts . | . . . Manual . | . . . Terminals . | . . . Fabricators . | . . . Repair Stations . | . . . Recycling Units . | . . . Scanalyzers . | . . . Garrison Access . | . . . Terminal Hacks . | . . . Fabricator Hacks . | . . . Repair Station Hacks . | . . . Recycling Unit Hacks . | . . . Scanalyzer . | . . . Garrison Access Hacks . | . . . Unauthorized Hacks . | . . . Terminals . | . . . Fabricators . | . . . Repair Stations . | . . . Recycling Units . | . . . Scanalyzers . | . . . Garrison Access . | . . . Data Cores Recovered . | . . . Used . | . . . Hacking Detections . | . . . Full Trace Events . | . . . Feedback Events . | . . . Feedback Blocked . | . . . Robot Schematics Acquired . | . . . Robots Built . | . . . Authchips . | . . . Time . | . . . Total Robot Build Rating . | . . . Part Schematics Acquired . | . . . Parts Built . | . . . Authchips . | . . . Time . | . . . Total Part Build Rating . | . . . Parts Repaired . | . . . Time . | . . . Parts Recycled . | . . . Recycled Matter . | . . . Retrieved Matter . | . . . Retrieved Components . | . . . Parts Scanalyzed . | . . . Part Schematics Acquired . | . . . Parts Damaged . | . . . Bothacking | -11 -10 -10 ------------ Run | Yrd Mat Sub Used RIF Installer . | . . . Robots Hacked . | . . . Non-combat . | . . . Combat . | . . . Robot Hacks Applied . | . . . Relay Couplers Released . | . . . Fabnet Peak Effective % . | . . . Robots Rewired . | . . . Allies Hacked . | . . . Hacks Repelled . | . . . Allies | -11 -10 -10 -------- Run | Yrd Mat Sub Total Allies . | . . . Largest Group . | . . . Highest-Rated Group . | . . . Highest-Rated Ally . | . . . Total Orders . | . . . Ally Attacks . | . . . Total Damage . | . . . Kills . | . . . Allies Corrupted . | . . . Allies Melted . | . . . Intel | -11 -10 -10 ------- Run | Yrd Mat Sub Robot Analysis Total . | . . . Derelict Logs Recovered 1 | . . 1 Drone Launches . | . . . Drone Recoveries . | . . . Exploration | -11 -10 -10 ------------- Run | Yrd Mat Sub Turns Passed 1553 | 181 200 1172 Spaces Moved 1175 | 125 100 950 Core 3 | 3 . . Treads . | . . . Legs . | . . . Wheels 1172 | 122 100 950 Hover . | . . . Flight . | . . . Fastest Speed 50 | 50 100 100 Average Speed 99 | 98 100 100 Slowest Speed 100 | 100 100 100 Overloaded Moves . | . . . Propulsion Burnouts . | . . . Robots Hopped . | . . . Cave-ins Triggered . | . . . Exploration Rate (%) 24 | 5 14 54 Regions Visited 2 Branch Regions 1 Pre-discovered Areas . | . . . Known Exits Taken . | . . . Unknown Exits Taken 2 | 1 1 . Scrap Searched . | . . . Spaces Dug 10 | . 5 5 Terrain Destroyed 83 | . 7 76 Melee 5 | . . 5 Projectile 7 | . 7 . AOE 71 | . . 71 Terrain Rammed . | . . . Walls Destroyed . | . . . Machines Disabled . | . . . Actions | -11 -10 -10 --------- Run | Yrd Mat Sub Total 1429 | 156 173 1100 Wait 128 | . 56 72 Move 1173 | 124 99 950 Hop . | . . . Pick Up 17 | 11 4 2 Fast Attach . | . . . Attach 12 | 5 3 4 Detach 1 | . . 1 Swap 4 | . 1 3 Drop 3 | 1 1 1 Fire 49 | 15 9 25 Melee 42 | . . 42 Ram . | . . . Kick . | . . . Crush . | . . . Escape Stasis . | . . . Rewire . | . . . Trap . | . . . Miscellaneous . | . . . Route ------- -11/Scrapyard -10/Materials -10/Subcaves (discovered 1 exit: [*Mat]) History --------- Turn | Location | Event 20 | -11/Scrapyard | Discovered new exit (range 16) 182 | -11/Scrapyard | Entered Materials 315 | -10/Materials | Build established: Mutant 322 | -10/Materials | Discovered new exit (range 4) 382 | -10/Materials | Entered Subcaves 427 | -10/Subcaves | Shifting Twisted Machinery released Mak. Hammer 567 | -10/Subcaves | Shifting Twisted Machinery released Sub. Shrapnel Launcher 570 | -10/Subcaves | Shifting Twisted Machinery released Sub. Shrapnel Launcher 588 | -10/Subcaves | A swath of the cavern ceiling suddenly collapsed 815 | -10/Subcaves | Discovered new exit (range 4) 998 | -10/Subcaves | Shifting Twisted Machinery released Mak. Kinetic Plating 1008 | -10/Subcaves | Shifting Twisted Machinery released Scrap Shield 1094 | -10/Subcaves | A swath of the cavern ceiling suddenly collapsed 1466 | -10/Subcaves | Core integrity fell below 50% 1468 | -10/Subcaves | Ambushed by Subdweller buried in earth 1474 | -10/Subcaves | Core integrity fell below 20% 1554 | -10/Subcaves | Destroyed by YE-RHT(R) with Subdweller Laser Last Messages --------------- 01468_ 8L-IXJ(R) destroyed. 01469_ TC-V4O(R): "ARGHSUB!" 01470_ The unstable cave ceiling collapses. 01471_ Ion Engine destroyed. 01473_ Subatomizers dissect the Sub. Optics. 01475_ The unstable cave ceiling collapses. 01476_ TC-V4O(R) destroyed. 01483_ The unstable cave ceiling collapses. 01484_ Subatomizers dissect the Sub. Optics. 01500_ The unstable cave ceiling collapses. 01500_ Sub. Optics crushed. 01500_ DS-M5G(R) destroyed. 01505_ Subatomizers dissect the Sub. Optics. 01505_ The unstable cave ceiling collapses. 01505_ Acquired 25 matter. 01509_ The unstable cave ceiling collapses. 01515_ Subatomizers dissect the Sub. Optics. 01521_ The unstable cave ceiling collapses. 01552_ Mak. Kinetic Plating destroyed. Map ----- +----------------------------------------------------+ | ???????????????????????????????????????????#####?? | | ?????????????????????????????????????????### ### | | ??????????????????????????????????#??????# | | ?????????????????????????????????## ?????# | | ?????????????????????????????????# ????# | | ??????????????????????????????????# ??# | | ???????????????????????????????????# ?# | | ???????????????????????????????????# ## " | | ???????????????????????????????????# " | | ???????????????????????????????????# " # | | ?????????????????????????##????????# #### # | | ????????????????????##??? ##? ????## ##?#### | | ????????????????????# ### ?? #### ##?## #? | | ??????####???####????# # #??? ???# ""# | | ??????# #### ###### ###?? #???#""" | | ?????## = ## ## """## #???# " | | #### #%&# # # & " ### ##??##### | | %!%= "# #" ##?### ##????## | | %% ]&& # ######????## ##???# | | ????# ## # """##???????# #??## | | ????#####??## " "########## #### | | ???????????# #" """##"" ### ## | | ???????????## " #?# ### | | ????????????# " #?# % #?##### | | ????????????# " ## ### ##?????## | | ????????????#; ; " @#### ## #???????? | | ????????????# "# ;#"R##### ### ##????###? | | ????????????## # # ###" # #?## ####??#"## | | ?????????????# ##" ##### ##?# | | ?????????????# ### # #### ### | | ?????????????#### ##### #?#### ## | | ?????????????## ## ## #????# | | ?????????????# ## ###### | | ?????????????# #### ## # | | ?????????????# #### #??## ## | | ?????????????## ???# #### #?### #? | | ??????????????# ???# #??# ## ##? | | ??????????????# ???#####??# ## ## ####?? | | ??????????????#???????????###################????? | | ?????????????????????????????????????????????????? | | ?????????????????????????????????????????????????? | | ?????????????????????????????????????????????????? | | ?????????????????????????????????????????????????? | | ?????????????????????????????????????????????????? | | ?????????????????????????????????????????????????? | | ?????????????????????????????????????????????????? | | ?????????????????????????????????????????????????? | | ?????????????????????????????????????????????????? | | ?????????????????????????????????????????????????? | | ?????????????????????????????????????????????????? | +----------------------------------------------------+ Best States ------------- Heat Dissipation 25 Energy Generation 10 Energy Capacity 250 Matter Stores 300 Matter Capacity 300 Sight Range 16 Terrain Scan Range 16 Terrain Scan Density 10 Additional Mass Support 6 Armor Coverage 100 Resistance: KI 10 Evasion (%) 40 Item Schematics ----------------- None Robot Schematics ------------------ None Fabricated ------------ Nothing Alien Tech Used ----------------- None Achievements -------------- None Challenges ------------ None Game ------ Seed ArcDimensionalShovel Manual? 0 Play Time 00:14:36 Cumulative 36.9 hours Start 2024.08.13 @ 17:57:13 End 2024.08.13 @ 18:37:44 Sessions 1 Manual Loads 0 Difficulty Rogue Special Mode None Game No. 63 Rogue 59 Adventurer 4 Explorer 0 Win Type - Total 0 Types 0/0/0/0/0/0/0/0/0 Lore% 10 Gallery% 32 Achievement% 23 Wizard Run 0 Options --------- Layout 1 ASCII 0 Keyboard 0 Movement Mouse Keybinds 0 Fullscreen 2 Font 24/Smallcaps Map View 50x35 Zoom Use 0% Tactical HUD 1 Map Filters NONE Filters NONE Steam 1 RUN: 29f0d97b-917a-4382-8d33-942bad5e44ba